bitfinex/quotes_BTCUSD_20250716
["timestamp","ask_amount","ask_price","bid_price","bid_amount"]
[1752636788654,0.03456998,117580.0,117570.0,0.79969677]
[1752636788878,0.03456998,117580.0,117570.0,0.41671687]
[1752636789084,0.04307475,117580.0,117570.0,0.41671687]
[1752636789503,0.03456998,117580.0,117570.0,0.41671687]
[1752636789712,0.04307468,117580.0,117570.0,0.41671687]
[1752636789922,0.03456998,117580.0,117570.0,0.41671687]
[1752636790132,0.03456998,117580.0,117570.0,0.75106033]
[1752636790343,0.0175608,117580.0,117570.0,0.75106033]
[1752636790543,0.00055198,117580.0,117570.0,1.23565051]
[1752636790758,0.0175608,117580.0,117570.0,1.23565051]
[1752636790959,0.00905632,117580.0,117570.0,1.23565051]
[1752636791203,0.00055198,117580.0,117570.0,1.23565051]
[1752636791415,0.00055198,117580.0,117570.0,1.25019136]
[1752636791640,0.00905617,117580.0,117570.0,1.25019136]
[1752636791852,0.00055198,117580.0,117570.0,1.25019136]
[1752636793658,0.00055198,117580.0,117570.0,0.86721146]
[1752636793869,0.00905617,117580.0,117570.0,1.25019136]
[1752636794362,0.00055198,117580.0,117570.0,1.25019136]
[1752636795000,0.00055198,117580.0,117570.0,0.86721146]
[1752636795210,0.00055198,117580.0,117570.0,1.25019136]
[1752636796150,0.0004,117590.0,117580.0,0.24185146]
[1752636796366,0.0004,117590.0,117580.0,0.86222176]
[1752636796604,0.0004,117590.0,117580.0,0.86530176]
[1752636796832,0.00890354,117590.0,117580.0,0.86530176]
[1752636797078,0.0004,117590.0,117580.0,0.86530176]
[1752636797327,0.0004,117590.0,117580.0,0.48232186]
[1752636797547,0.1959939,117590.0,117580.0,0.44211752]
[1752636797779,0.1959939,117590.0,117580.0,0.45062186]
[1752636798032,0.19046058,117590.0,117580.0,0.40288808]
[1752636798258,0.59831651,117590.0,117580.0,0.13072]
[1752636800608,0.21533661,117590.0,117580.0,0.13072]
[1752636800816,0.59831651,117590.0,117580.0,0.13072]
[1752636801029,0.21533661,117590.0,117580.0,0.13072]
[1752636801267,0.21533661,117590.0,117580.0,0.1967301]
[1752636801936,0.21533661,117590.0,117580.0,0.4902301]
[1752636803427,0.18195661,117590.0,117580.0,0.66230705]
[1752636803634,0.18195661,117590.0,117580.0,1.20603174]
[1752636803635,0.01840745,117590.0,117580.0,1.20603174]
[1752636803837,0.0014,117590.0,117580.0,1.20603174]
[1752636805790,0.00990354,117590.0,117580.0,1.20603174]
[1752636806802,0.0269112,117590.0,117580.0,1.20603174]
[1752636807008,0.21400186,117590.0,117580.0,1.04321174]
[1752636807210,0.22514066,117590.0,117580.0,0.59072123]
[1752636807414,0.21663661,117590.0,117580.0,0.69480808]
[1752636807594,0.21663661,117590.0,117580.0,0.52471113]
[1752636808315,0.21663661,117590.0,117580.0,0.68877207]
[1752636808517,0.21663661,117590.0,117580.0,0.68026723]
[1752636808785,0.21663661,117590.0,117580.0,0.5959299]
[1752636809431,0.21663661,117590.0,117580.0,0.76602685]
[1752636809669,0.21663661,117590.0,117580.0,0.5959299]
[1752636812413,0.21663661,117590.0,117580.0,0.76602685]
[1752636813236,0.21663661,117590.0,117580.0,0.77453169]
[1752636814377,0.21663661,117590.0,117580.0,0.78303646]
[1752636815206,0.21663661,117590.0,117580.0,0.68877207]
[1752636816008,0.21663661,117590.0,117580.0,0.69075207]
[1752636816212,0.21663661,117590.0,117580.0,0.69925684]
[1752636817516,0.00337,117590.0,117580.0,1.09924578]
[1752636817724,0.02037773,117590.0,117580.0,1.10775012]
[1752636818178,0.19046022,117590.0,117580.0,1.10775012]
[1752636818430,0.20746796,117590.0,117580.0,1.19350974]
[1752636818904,0.03738547,117590.0,117580.0,1.19350974]
[1752636819051,0.04588894,117590.0,117580.0,1.19350974]
[1752636819252,0.03738482,117590.0,117580.0,1.19350974]
[1752636819458,0.21400136,117590.0,117580.0,1.19658974]
[1752636819670,0.04391887,117590.0,117580.0,1.19658974]
[1752636819863,0.03541482,117590.0,117580.0,1.22758974]
[1752636820259,0.00990354,117590.0,117580.0,1.24213059]
[1752636820438,0.0014,117590.0,117580.0,1.24213059]
[1752636820593,0.00990347,117590.0,117580.0,1.24213059]
[1752636821219,0.01840708,117590.0,117580.0,1.24213059]
[1752636822816,0.03541467,117590.0,117580.0,1.24213059]
[1752636823031,0.02691077,117590.0,117580.0,1.24213059]
[1752636823445,0.01840708,117590.0,117580.0,1.24213059]
[1752636823654,0.0014,117590.0,117580.0,1.24213059]
[1752636823859,0.00990354,117590.0,117580.0,1.24213059]
[1752636824422,0.00990347,117590.0,117580.0,1.24213059]
[1752636824831,0.01840701,117590.0,117580.0,1.24213059]
[1752636825349,0.02691077,117590.0,117580.0,1.24213059]
[1752636825532,0.01840701,117590.0,117580.0,1.24213059]
[1752636825688,0.0269107,117590.0,117580.0,1.24213059]
[1752636825901,0.01840701,117590.0,117580.0,1.24213059]
[1752636826675,0.00990347,117590.0,117580.0,1.24213059]
[1752636826881,0.01840708,117590.0,117580.0,1.24213059]
[1752636827504,0.00990347,117590.0,117580.0,1.24213059]
[1752636828264,0.01840708,117590.0,117580.0,1.24213059]
[1752636828477,0.00990347,117590.0,117580.0,1.24213059]
[1752636829152,0.02691077,117590.0,117580.0,1.24213059]
[1752636829366,0.0269107,117590.0,117580.0,1.24213059]
[1752636829968,0.03541453,117590.0,117580.0,1.24213059]
[1752636830178,0.03541446,117590.0,117580.0,1.24213059]
[1752636831054,0.21400085,117590.0,117580.0,1.24213059]
[1752636831286,0.20762789,117590.0,117580.0,0.81656649]
[1752636831502,0.20549789,117590.0,117580.0,0.82507054]
[1752636831721,0.0354154,117590.0,117580.0,0.82805054]
[1752636831941,0.0354154,117590.0,117580.0,0.82805011]
[1752636832407,0.03541532,117590.0,117580.0,0.82805011]
[1752636832631,0.04391937,117590.0,117580.0,0.82805011]
[1752636834315,0.03541532,117590.0,117580.0,0.82805011]
[1752636835460,0.21400186,117590.0,117580.0,0.82805011]
[1752636835818,0.21400229,117590.0,117580.0,0.82805011]
[1752636836016,0.21400229,117590.0,117580.0,1.21103001]
[1752636836256,0.03541568,117590.0,117580.0,1.21103001]
[1752636836664,0.20549817,117590.0,117580.0,1.21103001]
[1752636837076,0.03541568,117590.0,117580.0,1.21103001]
[1752636837326,0.0439198,117590.0,117580.0,1.21103001]
[1752636837539,0.03541568,117590.0,117580.0,1.21103001]
[1752636838598,0.20549817,117590.0,117580.0,1.18551678]
[1752636838766,0.20549817,117590.0,117580.0,1.19402126]
[1752636839407,0.03541568,117590.0,117580.0,1.20252567]
[1752636839612,0.03541568,117590.0,117580.0,1.21103001]
[1752636840132,0.20549817,117590.0,117580.0,1.21103001]
[1752636840368,0.20549817,117590.0,117580.0,1.20252567]
[1752636841034,0.20549817,117590.0,117580.0,1.21103001]
[1752636841275,0.03541568,117590.0,117580.0,1.21103001]
[1752636841764,0.21400229,117590.0,117580.0,1.21103001]
[1752636842482,0.02691163,117590.0,117580.0,1.21103001]
[1752636843228,0.01840766,117590.0,117580.0,1.21103001]
[1752636843463,0.02691163,117590.0,117580.0,1.21103001]
[1752636844192,0.00990354,117590.0,117580.0,1.24163001]
[1752636844449,0.00990347,117590.0,117580.0,1.24163001]
[1752636844694,0.00990354,117590.0,117580.0,1.24163001]
[1752636844941,0.00990347,117590.0,117580.0,1.24163001]
[1752636845440,0.01840701,117590.0,117580.0,1.24163001]
[1752636845687,0.0269107,117590.0,117580.0,1.24163001]
[1752636846364,0.01840701,117590.0,117580.0,1.24163001]
[1752636846605,0.19912319,117590.0,117580.0,0.6513877]
[1752636846878,0.21613107,117590.0,117580.0,0.80762158]
[1752636847350,0.21613107,117590.0,117580.0,1.19910582]
[1752636847564,0.04604858,117590.0,117580.0,1.19910582]
[1752636848156,0.04604858,117590.0,117580.0,1.06838582]
[1752636848415,0.04604858,117590.0,117580.0,1.19910582]
[1752636848679,0.04604858,117590.0,117580.0,0.81612592]
[1752636848961,0.03541453,117590.0,117580.0,1.20208582]
[1752636849720,0.0439185,117590.0,117580.0,1.20208582]
[1752636850423,0.04391908,117590.0,117580.0,0.81910592]
[1752636850724,0.04391908,117590.0,117580.0,1.20208582]
[1752636851720,0.25020215,117590.0,117580.0,0.56364808]
[1752636851938,0.22469066,117590.0,117580.0,0.69428808]
[1752636852150,0.22469066,117590.0,117580.0,0.71980224]
[1752636853764,0.22369066,117590.0,117580.0,0.71980224]
[1752636854791,0.22369066,117590.0,117580.0,0.72830672]
[1752636855206,0.22369066,117590.0,117580.0,0.46359695]
[1752636855384,0.22369066,117590.0,117580.0,0.59423695]
[1752636855623,0.21518661,117590.0,117580.0,0.60274179]
[1752636856054,0.20668249,117590.0,117580.0,0.60274179]
[1752636856482,0.01097397,117590.0,117580.0,1.01333535]
[1752636856690,0.01097397,117590.0,117580.0,1.09909497]
[1752636856879,0.02798178,117590.0,117580.0,1.09909497]
[1752636857297,0.01947773,117590.0,117580.0,1.09909497]
[1752636857577,0.0279812,117590.0,117580.0,1.09909497]
[1752636857758,0.03648517,117590.0,117580.0,1.09909497]
[1752636859081,0.0279812,117590.0,117580.0,1.09909497]
[1752636859287,0.00890347,117590.0,117580.0,1.2021761]
[1752636859498,0.01740708,117590.0,117580.0,1.2021761]
[1752636859697,0.00890347,117590.0,117580.0,1.2021761]
[1752636859922,0.0259107,117590.0,117580.0,1.2021761]
[1752636860937,0.21300107,117590.0,117580.0,0.8161662]
[1752636861141,0.21300107,117590.0,117580.0,0.80766186]
[1752636861142,0.2418976,117590.0,117580.0,0.80766186]
[1752636861351,0.2418976,117590.0,117580.0,0.54935657]
[1752636861555,0.60787027,117590.0,117580.0,0.4241]
[1752636861767,0.60787027,117590.0,117580.0,0.60270179]
[1752636862220,0.59936644,117590.0,117580.0,0.60270179]
[1752636862996,0.21638654,117590.0,117580.0,0.60270179]
[1752636863250,0.21638654,117590.0,117580.0,0.47210179]
[1752636863474,0.21638654,117590.0,117580.0,0.60270179]
[1752636863691,0.21638654,117590.0,117580.0,0.68136434]
[1752636865481,0.21638654,117590.0,117580.0,0.2935]
[1752636865778,0.59086239,117590.0,117580.0,0.2935]
[1752636865980,1.14697267,117590.0,117580.0,0.2935]
[1752636867014,0.21992204,117570.0,117560.0,0.4241]
[1752636867232,0.22199204,117570.0,117560.0,0.29365198]
[1752636867484,0.60790194,117570.0,117560.0,0.29365198]
[1752636867737,0.60790194,117570.0,117560.0,0.42425198]
[1752636867985,0.73850194,117570.0,117560.0,0.13075198]
[1752636870136,0.35552204,117570.0,117560.0,0.13075198]
[1752636870806,0.73850194,117570.0,117560.0,0.00015198]
[1752636871194,1.07850194,117570.0,117560.0,0.00015198]
[1752636872024,5.65392822,117570.0,117560.0,0.00015198]
[1752636874044,5.65392822,117570.0,117560.0,0.00115198]
[1752636876775,5.65370282,117570.0,117560.0,0.00015198]
[1752636876996,5.65470282,117570.0,117560.0,0.00015198]
[1752636882155,5.74046244,117570.0,117560.0,0.00015198]
[1752636884633,5.77241167,117570.0,117560.0,0.00015198]
[1752636884840,5.68665205,117570.0,117560.0,0.00015198]
[1752636887106,5.68665205,117570.0,117560.0,1e-08]
[1752636887336,6.06963195,117570.0,117560.0,1e-08]
[1752636891137,5.30367215,117570.0,117560.0,1e-08]
[1752636891364,5.68665205,117570.0,117560.0,1e-08]
[1752636891581,5.77241167,117570.0,117560.0,1e-08]
[1752636898505,6.15539157,117570.0,117560.0,1e-08]
[1752636899336,5.77241167,117570.0,117560.0,1e-08]
[1752636900531,5.68665205,117570.0,117560.0,1e-08]
[1752636902812,5.71220405,117570.0,117560.0,1e-08]
[1752636912646,5.76220405,117570.0,117560.0,1e-08]
[1752636912849,6.14518395,117570.0,117560.0,1e-08]
[1752636913478,5.76220405,117570.0,117560.0,1e-08]
[1752636914320,5.84796367,117570.0,117560.0,1e-08]
[1752636917134,6.03889133,117570.0,117560.0,1e-08]
[1752636920307,5.95271633,117570.0,117560.0,1e-08]
[1752636921847,5.32587877,117570.0,117560.0,1e-08]
[1752636922078,5.32587877,117570.0,117560.0,0.00217001]
[1752636922079,5.12845954,117570.0,117560.0,0.00217001]
[1752636922296,5.12845954,117570.0,117560.0,0.32505379]
[1752636922297,0.76870354,117570.0,117560.0,0.32505379]
[1752636922543,0.76870354,117570.0,117560.0,0.03810001]
[1752636922759,0.74315154,117570.0,117560.0,0.07746969]
[1752636923405,0.74315154,117570.0,117560.0,0.03810001]
[1752636923907,1.1255437,117570.0,117560.0,0.03810001]
[1752636924140,0.9953837,117570.0,117560.0,0.03810001]
[1752636924342,1.1255437,117570.0,117560.0,0.03810001]
[1752636925217,0.74315154,117570.0,117560.0,0.03810001]
[1752636925415,1.1255437,117570.0,117560.0,0.03810001]
[1752636926594,0.74315154,117570.0,117560.0,0.03810001]
[1752636930242,1.1255437,117570.0,117560.0,0.03810001]
[1752636930452,0.74315154,117570.0,117560.0,0.03810001]
[1752636930659,1.1255437,117570.0,117560.0,0.03810001]
[1752636931598,0.74315154,117570.0,117560.0,0.03810001]
[1752636931729,1.1255437,117570.0,117560.0,0.03810001]
[1752636934239,0.74315154,117570.0,117560.0,0.03810001]
[1752636934467,1.1255437,117570.0,117560.0,0.03810001]
[1752636934912,1.1255437,117570.0,117560.0,0.04877431]
[1752636936278,1.1255437,117570.0,117560.0,0.03810001]
[1752636937510,0.65764126,117570.0,117560.0,0.03810001]
[1752636938371,0.52748126,117570.0,117560.0,0.03810001]
[1752636938573,0.52748126,117570.0,117560.0,0.42049217]
[1752636938782,0.52748126,117570.0,117560.0,0.03810001]
[1752636945111,0.81427299,117570.0,117560.0,0.03497001]
[1752636945351,0.94939299,117570.0,117560.0,1e-08]
[1752636945549,0.94939299,117570.0,117560.0,0.00209001]
[1752636945750,0.94643299,117570.0,117560.0,0.01849001]
[1752636945966,0.94643299,117570.0,117560.0,0.03359001]
[1752636948039,0.94643299,117570.0,117560.0,0.01849001]
[1752636948813,0.94939299,117570.0,117560.0,0.00209001]
[1752636950801,0.66260126,117570.0,117560.0,0.00209001]
[1752636951012,0.94939299,117570.0,117560.0,0.00209001]
[1752636952324,0.94643299,117570.0,117560.0,0.00209001]
[1752636952536,0.94643299,117570.0,117560.0,0.01789001]
[1752636953165,0.94643299,117570.0,117560.0,0.03449001]
[1752636953661,0.65760126,117570.0,117560.0,0.03759001]
[1752636953883,0.94439299,117570.0,117560.0,0.03759001]
[1752636954776,0.65760126,117570.0,117560.0,0.10624248]
[1752636955345,0.65760126,117570.0,117560.0,0.03759001]
[1752636955745,0.94439299,117570.0,117560.0,0.03759001]
[1752636962675,0.81427299,117570.0,117560.0,0.03759001]
[1752636962879,0.94439299,117570.0,117560.0,0.03759001]
[1752636963929,0.94439299,117570.0,117560.0,0.03449001]
[1752636964141,0.94939299,117570.0,117560.0,0.01789001]
[1752636964409,0.94939299,117570.0,117560.0,0.00209001]
[1752636966980,0.94939299,117570.0,117560.0,1e-08]
[1752636967467,0.94939299,117570.0,117560.0,0.00209001]
[1752636971587,0.66260126,117570.0,117560.0,0.00209001]
[1752636971796,0.94939299,117570.0,117560.0,0.00209001]
[1752636972854,0.94939299,117570.0,117560.0,1e-08]
[1752636976110,0.66260126,117570.0,117560.0,0.00204001]
[1752636976325,0.94939299,117570.0,117560.0,0.00204001]
[1752636980296,0.94939299,117570.0,117560.0,1e-08]
[1752636980463,0.98179299,117570.0,117560.0,1e-08]
[1752636980892,1.354095,117570.0,117560.0,1e-08]
[1752636981532,1.06730327,117570.0,117560.0,1e-08]
[1752636983759,0.92058327,117570.0,117560.0,1e-08]
[1752636983946,1.03490327,117570.0,117560.0,1e-08]
[1752636985846,0.52748126,117570.0,117560.0,0.03717001]
[1752636986056,0.52748126,117570.0,117560.0,0.84821196]
[1752636986057,0.001,117570.0,117560.0,0.84821196]
[1752636986276,0.001,117570.0,117560.0,1.3821866]
[1752636987401,0.0174073,117590.0,117580.0,0.19561061]
[1752636987610,0.00890354,117590.0,117580.0,0.93265407]
[1752636987822,0.20449767,117590.0,117580.0,0.91877518]
[1752636988030,0.20449825,117590.0,117580.0,1.01303943]
[1752636988232,0.20449825,117590.0,117580.0,1.02154398]
[1752636988476,0.02591164,117590.0,117580.0,1.0385528]
[1752636989100,0.02591164,117590.0,117580.0,0.84711763]
[1752636990234,0.20449825,117590.0,117580.0,0.83861329]
[1752636990722,0.19599449,117590.0,117580.0,0.86389664]
[1752636990928,0.01740788,117590.0,117580.0,0.87240105]
[1752636991158,0.01740788,117590.0,117580.0,0.87240062]
[1752636992619,0.18749037,117590.0,117580.0,0.86389628]
[1752636992840,0.18749037,117590.0,117580.0,0.48174799]
[1752636993052,0.18749037,117590.0,117580.0,0.86389628]
[1752636993267,0.01740788,117590.0,117580.0,0.87240062]
[1752636993481,0.18749037,117590.0,117580.0,0.84684775]
[1752636993692,0.18749037,117590.0,117580.0,0.86385679]
[1752636993924,0.19599449,117590.0,117580.0,0.86385679]
[1752636994213,0.19599449,117590.0,117580.0,0.85535238]
[1752636994434,0.19599449,117590.0,117580.0,0.86385693]
[1752636995101,0.19599449,117590.0,117580.0,0.83834305]
[1752636995102,0.18749066,117590.0,117580.0,0.83834305]
[1752636995761,0.18749066,117590.0,117580.0,0.65974126]
[1752636997153,0.18959066,117590.0,117580.0,0.32082335]
[1752636997374,0.19258066,117590.0,117580.0,0.45090335]
[1752636999525,0.19258066,117590.0,117580.0,0.2935]
[1752636999677,0.18712219,117570.0,117560.0,0.67204697]
[1752636999905,0.18712219,117570.0,117560.0,0.82909886]
[1752637000089,0.18712219,117570.0,117560.0,0.80358057]
[1752637000289,0.18712219,117570.0,117560.0,0.81208657]
[1752637000692,0.18712219,117570.0,117560.0,0.82059271]
[1752637000900,0.0255159,117570.0,117560.0,0.83760442]
[1752637001494,0.20413289,117570.0,117560.0,0.83760442]
[1752637001703,0.0255159,117570.0,117560.0,0.83760442]
[1752637001816,0.01701005,117570.0,117560.0,0.83760442]
[1752637002025,0.18710627,117580.0,117570.0,0.22000962]
[1752637002237,0.18710627,117580.0,117570.0,0.31962444]
[1752637002238,0.19561111,117580.0,117570.0,0.31962444]
[1752637002493,0.19561111,117580.0,117570.0,0.70177273]
[1752637004127,0.19561111,117580.0,117570.0,0.68476225]
[1752637004283,0.19561111,117580.0,117570.0,0.43265396]
[1752637004481,0.19561111,117580.0,117570.0,0.34689434]
[1752637005157,0.19561111,117580.0,117570.0,0.35539969]
[1752637005369,0.19561111,117580.0,117570.0,0.36390489]
[1752637007300,0.19561111,117580.0,117570.0,0.74605318]
[1752637007809,0.18906656,117580.0,117570.0,0.13215]
[1752637008014,0.18056179,117580.0,117570.0,0.13215]
[1752637008475,0.18056179,117580.0,117570.0,0.39281021]
[1752637008933,0.18056179,117580.0,117570.0,0.13215]
[1752637009158,0.18380179,117580.0,117570.0,0.13215]
[1752637009773,0.18380179,117580.0,117570.0,0.00211]
[1752637009952,0.18056179,117580.0,117570.0,0.13215]
[1752637010285,0.18056179,117580.0,117570.0,0.31076691]
[1752637010425,0.18056179,117580.0,117570.0,0.40503195]
[1752637010642,0.18056179,117580.0,117570.0,0.39652653]
[1752637011042,0.00850463,117580.0,117570.0,0.40827195]
[1752637011271,0.02551374,117580.0,117570.0,0.45748229]
[1752637011455,0.20411546,117580.0,117570.0,0.21790962]
[1752637011656,0.19230642,117580.0,117570.0,0.13215]
[1752637011965,0.20750642,117580.0,117570.0,0.13004]
[1752637013593,0.19230642,117580.0,117570.0,0.13004]
[1752637015126,0.19562689,117570.0,117560.0,0.08375836]
[1752637015343,0.18057684,117570.0,117560.0,0.1549719]
[1752637015559,0.18381684,117570.0,117560.0,0.1549719]
[1752637015734,0.18057684,117570.0,117560.0,0.23179344]
[1752637015946,0.18712219,117570.0,117560.0,0.42217169]
[1752637016158,0.18712219,117570.0,117560.0,0.83571998]
[1752637016493,0.18712219,117570.0,117560.0,0.82721391]
[1752637016708,0.18712219,117570.0,117560.0,0.83572013]
[1752637017076,0.18712219,117570.0,117560.0,0.84422627]
[1752637017684,0.17011142,117570.0,117560.0,0.83572013]
[1752637018422,0.17011142,117570.0,117560.0,0.84422627]
[1752637018779,0.17011142,117570.0,117560.0,0.46207798]
[1752637019007,0.17011142,117570.0,117560.0,0.84422627]
[1752637020722,0.17011142,117570.0,117560.0,0.83572013]
[1752637020928,0.17011142,117570.0,117560.0,1.09782013]
[1752637021222,0.17011142,117570.0,117560.0,1.08931391]
[1752637021491,0.17207142,117570.0,117560.0,0.52529344]
[1752637021701,0.17531142,117570.0,117560.0,0.4505819]
[1752637021926,0.16787142,117570.0,117560.0,0.4505819]
[1752637023004,0.16787142,117570.0,117560.0,0.3205419]
[1752637023218,0.16787142,117570.0,117560.0,0.4505819]
[1752637023640,0.16787142,117570.0,117560.0,0.53423152]
[1752637023866,0.19867142,117570.0,117560.0,0.53423152]
[1752637024064,0.19867142,117570.0,117560.0,0.4484719]
[1752637024505,0.19867142,117570.0,117560.0,0.3184319]
[1752637024726,0.19867142,117570.0,117560.0,0.4484719]
[1752637026757,0.19867142,117570.0,117560.0,0.1549719]
[1752637027570,1.00632999,117570.0,117560.0,1e-08]
[1752637027780,1.13636999,117570.0,117560.0,1e-08]
[1752637029020,1.13736999,117570.0,117560.0,1e-08]
[1752637052441,5.62728599,117570.0,117560.0,1e-08]
[1752637052860,6.00943428,117570.0,117560.0,1e-08]
[1752637053130,6.05943428,117570.0,117560.0,1e-08]
[1752637053560,6.1451939,117570.0,117560.0,1e-08]
[1752637054193,5.78859861,117570.0,117560.0,1e-08]
[1752637054854,5.70283899,117570.0,117560.0,1e-08]
[1752637057132,5.70183899,117570.0,117560.0,1e-08]
[1752637057352,5.2696907,117570.0,117560.0,1e-08]
[1752637057563,5.65183899,117570.0,117560.0,1e-08]
[1752637058603,5.65683899,117570.0,117560.0,1e-08]
[1752637059414,5.52679899,117570.0,117560.0,1e-08]
[1752637059828,5.2448507,117570.0,117560.0,1e-08]
[1752637060033,5.2192977,117570.0,117560.0,1e-08]
[1752637060641,5.60140599,117570.0,117560.0,1e-08]
[1752637060799,1.11148999,117570.0,117560.0,1e-08]
[1752637061000,5.60140599,117570.0,117560.0,1e-08]
[1752637061545,5.59640599,117570.0,117560.0,1e-08]
[1752637061954,5.59940599,117570.0,117560.0,1e-08]
[1752637062373,5.59940599,117570.0,117560.0,0.01781001]
[1752637062374,0.3840617,117570.0,117560.0,0.01781001]
[1752637062619,0.7240617,117570.0,117560.0,0.04225531]
[1752637062817,0.3840617,117570.0,117560.0,0.04225531]
[1752637062987,0.7240617,117570.0,117560.0,0.04225531]
[1752637063184,0.3810617,117570.0,117560.0,0.04225531]
[1752637063499,0.7210617,117570.0,117560.0,0.04225531]
[1752637063702,0.7230617,117570.0,117560.0,0.03361001]
[1752637064722,0.7230617,117570.0,117560.0,0.59759048]
[1752637064723,0.01901048,117570.0,117560.0,0.59759048]
[1752637064943,0.01901019,117570.0,117560.0,0.91660833]
[1752637065361,0.01901005,117570.0,117560.0,0.91660833]
[1752637065553,0.01901005,117570.0,117560.0,1.00236795]
[1752637065760,0.01701005,117570.0,117560.0,1.00236795]
[1752637066073,0.01700904,117580.0,117570.0,0.22772725]
[1752637066284,0.19561054,117580.0,117570.0,0.60658048]
[1752637066614,0.19561054,117580.0,117570.0,0.74612568]
[1752637066819,0.20411538,117580.0,117570.0,0.8318853]
[1752637067230,0.19561104,117580.0,117570.0,0.8233801]
[1752637067440,0.17009695,117580.0,117570.0,0.25410962]
[1752637067786,0.17009695,117580.0,117570.0,0.16835]
[1752637068257,0.17009695,117580.0,117570.0,0.33081]
[1752637068492,0.17009695,117580.0,117570.0,0.46185]
[1752637070673,0.77389552,117580.0,117570.0,0.2935]
[1752637070942,1.14629552,117580.0,117570.0,0.2935]
[1752637074241,0.51861684,117570.0,117560.0,1e-08]
[1752637074469,0.52071684,117570.0,117560.0,1e-08]
[1752637074713,0.90586513,117570.0,117560.0,1e-08]
[1752637075354,0.90586513,117570.0,117560.0,0.00100001]
[1752637077491,0.90586513,117570.0,117560.0,0.00301001]
[1752637078340,0.52371684,117570.0,117560.0,0.00301001]
[1752637079384,0.52071684,117570.0,117560.0,0.00301001]
[1752637081389,0.51861684,117570.0,117560.0,0.03791001]
[1752637081558,0.51861684,117570.0,117560.0,0.12366963]
[1752637081986,0.51861684,117570.0,117560.0,0.03791001]
[1752637083088,0.51861684,117570.0,117560.0,0.03471001]
[1752637083494,0.52071684,117570.0,117560.0,0.00301001]
[1752637084159,0.52071684,117570.0,117560.0,0.01901001]
[1752637089044,0.52371684,117570.0,117560.0,0.13180001]
[1752637093708,0.52371684,117570.0,117560.0,0.13388001]
[1752637093927,0.52371684,117570.0,117560.0,0.17994001]
[1752637094143,0.52071684,117570.0,117560.0,0.17994001]
[1752637095728,0.52071684,117570.0,117560.0,0.13388001]
[1752637098631,0.52071684,117570.0,117560.0,0.15038001]
[1752637100225,0.51861684,117570.0,117560.0,0.15333001]
[1752637100442,0.51861684,117570.0,117560.0,0.16873001]
[1752637101069,0.51861684,117570.0,117560.0,0.72100419]
[1752637101278,0.52712241,117570.0,117560.0,0.82377588]
[1752637101913,0.35701077,117570.0,117560.0,0.83228174]
[1752637102142,0.54413325,117570.0,117560.0,0.83228174]
[1752637102351,0.5356279,117570.0,117560.0,0.81526995]
[1752637103589,0.5356279,117570.0,117560.0,0.72662166]
[1752637104033,0.5356279,117570.0,117560.0,0.64086204]
[1752637104775,0.5356279,117570.0,117560.0,0.64936804]
[1752637105708,0.5356279,117570.0,117560.0,0.64086204]
[1752637105889,0.52712248,117570.0,117560.0,0.64086204]
[1752637107591,0.52712248,117570.0,117560.0,0.64936811]
[1752637108034,0.52712248,117570.0,117560.0,0.5015559]
[1752637108243,0.52712248,117570.0,117560.0,0.64058212]
[1752637108443,0.52712248,117570.0,117560.0,0.64908826]
[1752637109713,0.52712248,117570.0,117560.0,0.64058212]
[1752637109943,0.51861699,117570.0,117560.0,0.64058212]
[1752637110180,0.51861699,117570.0,117560.0,0.64908812]
[1752637110441,0.52712234,117570.0,117560.0,1.11699603]
[1752637110660,0.52712234,117570.0,117560.0,1.03123641]
[1752637110881,0.52712234,117570.0,117560.0,1.03974234]
[1752637111565,0.52712234,117570.0,117560.0,1.0482482]
[1752637112150,0.52712234,117570.0,117560.0,1.03974234]
[1752637112778,0.52712234,117570.0,117560.0,1.0482482]
[1752637113529,0.52712234,117570.0,117560.0,1.13400782]
[1752637113735,0.52712234,117570.0,117560.0,1.1425136]
[1752637113949,0.35701092,117570.0,117560.0,1.1425136]
[1752637114854,0.18712234,117570.0,117560.0,1.1425136]
[1752637115041,0.01700991,117570.0,117560.0,1.12550138]
[1752637115305,0.17860165,117580.0,117570.0,0.22582747]
[1752637115306,0.19561112,117580.0,117570.0,0.22582747]
[1752637115513,0.19561112,117580.0,117570.0,0.98931538]
[1752637115758,0.19561112,117580.0,117570.0,0.99226538]
[1752637116171,0.19561112,117580.0,117570.0,0.98376025]
[1752637116381,0.19561112,117580.0,117570.0,0.99226553]
[1752637117057,0.18710664,117580.0,117570.0,0.60161196]
[1752637117256,0.17860194,117580.0,117570.0,0.99226553]
[1752637118076,0.17009717,117580.0,117570.0,0.6016121]
[1752637118490,0.17009717,117580.0,117570.0,0.32873]
[1752637118940,0.17009717,117580.0,117570.0,0.50734699]
[1752637120487,0.17009717,117580.0,117570.0,0.51585248]
[1752637120762,0.17009717,117580.0,117570.0,0.33723557]
[1752637121006,0.17009717,117580.0,117570.0,0.50734699]
[1752637122311,0.17009717,117580.0,117570.0,0.50834699]
[1752637123071,0.17009717,117580.0,117570.0,0.59410661]
[1752637125711,0.17009717,117580.0,117570.0,0.6026121]
[1752637125950,0.17009717,117580.0,117570.0,0.51685248]
[1752637127035,0.17009717,117580.0,117570.0,0.50175248]
[1752637127694,0.17009717,117580.0,117570.0,0.31463]
[1752637127899,0.17009717,117580.0,117570.0,0.29953]
[1752637128125,0.17009717,117580.0,117570.0,0.29658]
[1752637129693,0.17009717,117580.0,117570.0,0.46669142]
[1752637130980,0.17009717,117580.0,117570.0,0.29658]
[1752637131410,0.17209717,117580.0,117570.0,0.29658]
[1752637131804,0.17209717,117580.0,117570.0,0.46669142]
[1752637132848,0.17209717,117580.0,117570.0,0.29658]
[1752637134952,0.17209717,117580.0,117570.0,0.46669142]
[1752637135732,0.17860201,117580.0,117570.0,0.94623475]
[1752637135939,0.18710664,117580.0,117570.0,0.9860401]
[1752637136121,0.18710664,117580.0,117570.0,0.61239709]
[1752637136354,0.19561076,117580.0,117570.0,1.00305051]
[1752637136563,0.19561076,117580.0,117570.0,0.99454538]
[1752637136751,0.19561076,117580.0,117570.0,1.12474538]
[1752637137429,0.2041156,117580.0,117570.0,1.13325058]
[1752637137851,0.2041156,117580.0,117570.0,1.10773475]
[1752637138070,0.18710656,117580.0,117570.0,0.51566962]
[1752637138304,0.18710656,117580.0,117570.0,0.42678]
[1752637138525,0.18910656,117580.0,117570.0,0.42678]
[1752637138944,0.18910656,117580.0,117570.0,0.29658]
[1752637139153,0.19206656,117580.0,117570.0,0.42678]
[1752637141533,0.60531485,117580.0,117570.0,0.4247]
[1752637143532,0.22316656,117580.0,117570.0,0.4247]
[1752637144193,0.19206656,117580.0,117570.0,0.59677142]
[1752637144616,0.20746656,117580.0,117570.0,0.4247]
[1752637144827,0.22296656,117580.0,117570.0,0.4247]
[1752637145253,0.22296656,117580.0,117570.0,0.1312]
[1752637145679,0.22296656,117580.0,117570.0,0.21695962]
[1752637146766,0.22296656,117580.0,117570.0,0.1312]
[1752637151364,0.60511485,117580.0,117570.0,0.1312]
[1752637152018,0.22296656,117580.0,117570.0,0.1312]